bitfinex/quotes_BTCUSD_20220218
["timestamp","ask_amount","ask_price","bid_price","bid_amount"]
[1645173094049,0.04834459,40726.0,40725.0,1.09362807]
[1645173096695,0.04834459,40726.0,40725.0,1.09662807]
[1645173097997,0.04834459,40726.0,40725.0,1.09362807]
[1645173099943,0.04834459,40726.0,40725.0,1.15501107]
[1645173100845,0.04834459,40726.0,40725.0,1.15801107]
[1645173103994,0.04834459,40726.0,40725.0,1.15501107]
[1645173104395,0.04820867,40726.0,40725.0,1.15501107]
[1645173108649,0.04820867,40726.0,40725.0,1.15801107]
[1645173109549,0.04820867,40726.0,40725.0,1.35345546]
[1645173109749,0.04820867,40726.0,40725.0,1.15801107]
[1645173109950,0.04820867,40726.0,40725.0,1.15501107]
[1645173110149,0.04820867,40726.0,40725.0,1.35045578]
[1645173112697,0.04820867,40726.0,40725.0,1.35445578]
[1645173113298,0.04820867,40726.0,40725.0,1.35439034]
[1645173114043,0.04820867,40726.0,40725.0,1.35039034]
[1645173114646,0.04820867,40726.0,40725.0,1.35439034]
[1645173115745,0.04820867,40726.0,40725.0,1.35474301]
[1645173115946,0.04820867,40726.0,40725.0,1.35074301]
[1645173116646,0.04820867,40726.0,40725.0,1.35474301]
[1645173117446,0.04820867,40726.0,40725.0,1.35467757]
[1645173117895,0.04820867,40726.0,40725.0,1.25067757]
[1645173119094,0.04820867,40726.0,40725.0,1.30067757]
[1645173119293,0.04820867,40726.0,40725.0,1.40067757]
[1645173120896,0.04820867,40726.0,40725.0,1.20523286]
[1645173121297,0.04820867,40726.0,40725.0,1.40067208]
[1645173121550,0.04820867,40726.0,40725.0,1.40060664]
[1645173121949,0.04820867,40726.0,40725.0,0.24282741]
[1645173121950,0.34820867,40726.0,40725.0,0.24282741]
[1645173122150,0.34820867,40726.0,40725.0,0.04738819]
[1645173122151,0.54820867,40726.0,40725.0,0.04738819]
[1645173122546,0.24820867,40726.0,40725.0,0.04738819]
[1645173123345,0.24820867,40726.0,40725.0,0.04734115]
[1645173124947,0.24820867,40726.0,40725.0,0.05134115]
[1645173126010,0.24820867,40726.0,40725.0,0.04734115]
[1645173127216,0.24820867,40726.0,40725.0,0.04727571]
[1645173128817,0.29820867,40726.0,40725.0,0.05127571]
[1645173129869,0.24820867,40726.0,40725.0,0.05127571]
[1645173130067,0.24820867,40726.0,40725.0,0.04727571]
[1645173130774,0.24820867,40726.0,40725.0,0.05127571]
[1645173131969,0.24820867,40726.0,40725.0,0.04727571]
[1645173134697,0.24820867,40726.0,40725.0,0.05027571]
[1645173136000,0.24820867,40726.0,40725.0,0.04727571]
[1645173136845,0.24820867,40726.0,40725.0,0.05027571]
[1645173137947,0.24820867,40726.0,40725.0,0.04727571]
[1645173139047,0.29820867,40726.0,40725.0,0.04727571]
[1645173140903,0.29820867,40726.0,40725.0,0.05027571]
[1645173142912,0.29820867,40726.0,40725.0,0.05327571]
[1645173143108,0.09755142,40724.0,40723.0,0.00025407]
[1645173143706,0.09755142,40724.0,40723.0,0.04945407]
[1645173143906,0.09755142,40724.0,40723.0,0.09945407]
[1645173144149,0.09755142,40724.0,40723.0,0.430709]
[1645173144353,0.09755142,40724.0,40723.0,0.0992]
[1645173144749,0.09755142,40724.0,40723.0,0.1022]
[1645173146748,0.09755142,40724.0,40723.0,0.1052]
[1645173146947,0.09755142,40724.0,40723.0,0.1022]
[1645173147347,0.09755142,40724.0,40723.0,0.433709]
[1645173148201,0.09755142,40724.0,40723.0,0.43382505]
[1645173148599,0.09755142,40724.0,40723.0,0.43082505]
[1645173148797,0.09755142,40724.0,40723.0,0.43382505]
[1645173150198,0.09755142,40724.0,40723.0,0.43082505]
[1645173150804,0.09755142,40724.0,40723.0,0.43382505]
[1645173152147,0.09755142,40724.0,40723.0,0.43082505]
[1645173153452,0.09755142,40724.0,40723.0,0.43382505]
[1645173154251,0.09755142,40724.0,40723.0,0.43376505]
[1645173154651,0.09755142,40724.0,40723.0,0.43076505]
[1645173154850,0.09755142,40724.0,40723.0,0.43376505]
[1645173156104,0.09755142,40724.0,40723.0,0.43076505]
[1645173156902,0.09755142,40724.0,40723.0,0.43376505]
[1645173157701,0.09755142,40724.0,40723.0,0.74688038]
[1645173158103,0.09755142,40724.0,40723.0,0.09925605]
[1645173158308,0.09755142,40724.0,40723.0,0.38156505]
[1645173158504,0.09755142,40724.0,40723.0,0.38191772]
[1645173158706,0.09755142,40724.0,40723.0,0.05040872]
[1645173159153,0.09755142,40724.0,40723.0,0.00046872]
[1645173159350,0.39755142,40724.0,40723.0,0.00046872]
[1645173159551,0.39755142,40724.0,40723.0,0.00011605]
[1645173161555,0.09755142,40724.0,40723.0,0.00011605]
[1645173162798,0.09755142,40724.0,40723.0,0.00046872]
[1645173162998,0.09755142,40724.0,40723.0,0.00011605]
[1645173163199,0.09755142,40724.0,40723.0,0.00046872]
[1645173163399,0.09755142,40724.0,40723.0,0.00011605]
[1645173163601,0.09755142,40724.0,40723.0,0.00046872]
[1645173163804,0.09755142,40724.0,40723.0,0.00011605]
[1645173164105,0.09755142,40724.0,40723.0,0.00046872]
[1645173164301,0.09755142,40724.0,40723.0,0.00011605]
[1645173164505,0.09755142,40724.0,40723.0,0.00046872]
[1645173164704,0.09755142,40724.0,40723.0,0.31323138]
[1645173164903,0.09755142,40724.0,40723.0,0.31358405]
[1645173165103,0.09755142,40724.0,40723.0,0.00046872]
[1645173165305,0.09755142,40724.0,40723.0,0.05046872]
[1645173165805,0.09755142,40724.0,40723.0,0.00046872]
[1645173167453,0.39755142,40724.0,40723.0,0.00046872]
[1645173167852,0.09755142,40724.0,40723.0,0.00011605]
[1645173168252,0.09755142,40724.0,40723.0,0.331509]
[1645173168452,0.05,40723.0,40722.0,0.33162505]
[1645173168753,0.25,40723.0,40722.0,0.38197772]
[1645173169652,0.25,40723.0,40722.0,0.38162505]
[1645173170052,0.25,40723.0,40722.0,0.38197772]
[1645173170803,0.25,40723.0,40722.0,0.38397772]
[1645173171003,0.2,40723.0,40722.0,0.43317772]
[1645173171602,0.2,40723.0,40722.0,0.43731826]
[1645173171808,0.25,40723.0,40722.0,0.43731826]
[1645173172004,0.25,40723.0,40722.0,0.43531826]
[1645173172805,0.2,40723.0,40722.0,0.43531826]
[1645173174358,0.19992337,40723.0,40722.0,0.43531826]
[1645173174656,0.09755142,40724.0,40722.0,0.43531826]
[1645173174857,0.09755142,40724.0,40723.0,0.31324256]
[1645173175056,0.09755142,40724.0,40723.0,0.36279523]
[1645173175254,0.29755142,40724.0,40723.0,0.36279523]
[1645173175454,0.29755142,40724.0,40723.0,0.69430423]
[1645173175655,0.29755142,40724.0,40723.0,0.36279523]
[1645173176457,0.29755142,40724.0,40723.0,0.69430423]
[1645173177057,0.29755142,40724.0,40723.0,0.36279523]
[1645173177657,0.29755142,40724.0,40723.0,0.69430423]
[1645173178216,0.29755142,40724.0,40723.0,0.69441144]
[1645173180319,0.29755142,40724.0,40723.0,0.36290244]
[1645173180720,0.29755142,40724.0,40723.0,0.69441144]
[1645173181559,0.29755142,40724.0,40723.0,0.38116888]
[1645173182960,0.29755142,40724.0,40723.0,0.36291628]
[1645173184961,0.29755142,40724.0,40723.0,0.69442528]
[1645173185605,0.29605036,40724.0,40723.0,0.69442528]
[1645173185806,0.2952845,40724.0,40723.0,0.69442528]
[1645173186005,0.29453035,40724.0,40723.0,0.69442528]
[1645173186207,0.29298619,40724.0,40723.0,0.69442528]
[1645173187007,0.29298619,40724.0,40723.0,0.69742528]
[1645173188207,0.29298619,40724.0,40723.0,0.69442528]
[1645173188909,0.29298619,40724.0,40723.0,0.36591628]
[1645173189154,0.29298619,40724.0,40723.0,0.69742528]
[1645173189354,0.29298619,40724.0,40723.0,0.36591628]
[1645173189554,0.29298619,40724.0,40723.0,0.69742528]
[1645173189760,0.29298619,40724.0,40723.0,0.36591628]
[1645173189955,0.59298619,40724.0,40723.0,0.05265988]
[1645173190155,0.29298619,40724.0,40723.0,0.04965988]
[1645173191156,0.59298619,40724.0,40723.0,0.04965988]
[1645173191957,0.29298619,40724.0,40723.0,0.04965988]
[1645173193003,0.59298619,40724.0,40723.0,0.04965988]
[1645173193404,0.29298619,40724.0,40723.0,0.09930721]
[1645173193804,0.29298619,40724.0,40723.0,0.09965988]
[1645173194909,0.29298619,40724.0,40723.0,0.10265988]
[1645173195308,0.29298619,40724.0,40723.0,0.43416888]
[1645173195508,0.29298619,40724.0,40723.0,0.74742528]
[1645173195707,0.29298619,40724.0,40723.0,0.74707261]
[1645173196108,0.29298619,40724.0,40723.0,0.74442528]
[1645173196309,0.29298619,40724.0,40723.0,0.74407261]
[1645173196556,0.29298619,40724.0,40723.0,0.74442528]
[1645173196952,0.29298619,40724.0,40723.0,0.43416888]
[1645173198151,0.29298619,40724.0,40723.0,0.43116888]
[1645173198953,0.29298619,40724.0,40723.0,0.43416888]
[1645173200161,0.29298619,40724.0,40723.0,0.43116888]
[1645173201003,0.29298619,40724.0,40723.0,0.10265988]
[1645173201403,0.29298619,40724.0,40723.0,0.43416888]
[1645173201803,0.29298619,40724.0,40723.0,0.10265988]
[1645173202004,0.29298619,40724.0,40723.0,0.43416888]
[1645173202205,0.29298619,40724.0,40723.0,0.43116888]
[1645173204056,0.29298619,40724.0,40723.0,0.62662897]
[1645173204254,0.29298619,40724.0,40723.0,0.43116888]
[1645173205559,0.29298619,40724.0,40723.0,0.43081621]
[1645173206855,0.29298619,40724.0,40723.0,0.43303212]
[1645173207056,0.29298619,40724.0,40723.0,0.43338479]
[1645173208906,0.29298619,40724.0,40723.0,0.43638479]
[1645173210107,0.28548619,40724.0,40723.0,0.43638479]
[1645173210407,0.28548619,40724.0,40723.0,0.43338479]
[1645173211653,0.28548619,40724.0,40723.0,0.43226509]
[1645173215406,0.28548619,40724.0,40723.0,0.43220141]
[1645173216405,0.28448221,40724.0,40723.0,0.43220141]
[1645173216608,0.28448221,40724.0,40723.0,0.53220141]
[1645173217007,0.28448221,40724.0,40723.0,0.53397846]
[1645173217407,0.28448221,40724.0,40723.0,0.53362579]
[1645173218107,0.28448221,40724.0,40723.0,0.43362579]
[1645173218312,0.28448221,40724.0,40723.0,0.74719776]
[1645173218708,0.28448221,40724.0,40723.0,0.74684509]
[1645173218908,0.28448221,40724.0,40723.0,0.74719776]
[1645173219348,0.28448221,40724.0,40723.0,0.69799776]
[1645173220348,0.28448221,40724.0,40723.0,0.38442579]
[1645173220549,0.28448221,40724.0,40723.0,0.38477846]
[1645173220956,0.28448221,40724.0,40723.0,0.70099776]
[1645173221152,0.28448221,40724.0,40723.0,0.70064509]
[1645173222251,0.28448221,40724.0,40723.0,0.69764509]
[1645173224107,0.28448221,40724.0,40723.0,0.69799776]
[1645173225006,0.28448221,40724.0,40723.0,0.70064509]
[1645173225206,0.28448221,40724.0,40723.0,0.70099776]
[1645173225709,0.28448221,40724.0,40723.0,0.70064509]
[1645173226112,0.28448221,40724.0,40723.0,0.43697846]
[1645173226309,0.28448221,40724.0,40723.0,0.43397846]
[1645173226563,0.00030082,40726.0,40724.0,0.6]
[1645173226757,14.99493815,40728.0,40726.0,0.331509]
[1645173226956,14.29692614,40728.0,40727.0,2.48948131]
[1645173227155,14.29692614,40728.0,40727.0,2.87099031]
[1645173227355,12.92980793,40728.0,40727.0,2.92128261]
[1645173227555,12.09228953,40728.0,40727.0,3.14466425]
[1645173227954,11.72407709,40728.0,40727.0,3.14466425]
[1645173228556,11.72407709,40728.0,40727.0,2.92128261]
[1645173229758,11.72407709,40728.0,40727.0,3.14466425]
[1645173231705,11.72407709,40728.0,40727.0,3.19466425]
[1645173231905,11.72407709,40728.0,40727.0,3.19752463]
[1645173232108,11.67277518,40728.0,40727.0,3.19752463]
[1645173232706,11.67277518,40728.0,40727.0,3.14752463]
[1645173233808,11.67277518,40728.0,40727.0,3.14762262]
[1645173234255,11.67277518,40728.0,40727.0,3.51240301]
[1645173234855,7.44823362,40728.0,40727.0,3.14762262]
[1645173235255,7.39452882,40728.0,40727.0,3.14762262]
[1645173235454,6.92496276,40728.0,40727.0,3.14762262]
[1645173235655,6.92118966,40728.0,40727.0,3.14762262]
[1645173235855,6.55302666,40728.0,40727.0,2.97424098]
[1645173236056,6.55302666,40728.0,40727.0,2.74855967]
[1645173236560,6.18484666,40728.0,40727.0,2.74855967]
[1645173236755,6.18484666,40728.0,40727.0,2.69855967]
[1645173236955,5.81667666,40728.0,40727.0,2.69786257]
[1645173237557,4.61103475,40728.0,40727.0,2.69786257]
[1645173237803,4.61103475,40728.0,40727.0,2.74786257]
[1645173238405,4.61103475,40728.0,40727.0,2.69303036]
[1645173238803,4.61103475,40728.0,40727.0,2.64303036]
[1645173239406,4.61103475,40728.0,40727.0,2.68973387]
[1645173239806,4.58156846,40728.0,40727.0,2.68973387]
[1645173240608,4.58092897,40728.0,40727.0,2.68973387]
[1645173241572,4.58092897,40728.0,40727.0,2.68973119]
[1645173242358,4.58092897,40728.0,40727.0,2.4942711]
[1645173242559,4.58092897,40728.0,40727.0,2.68967291]
[1645173243161,4.53672954,40728.0,40727.0,2.68967291]
[1645173243761,4.09489581,40728.0,40727.0,2.68967291]
[1645173243963,2.04218693,40728.0,40727.0,2.68967291]
[1645173244163,1.67338167,40728.0,40727.0,2.68967291]
[1645173244367,0.00029932,40739.0,40727.0,2.68967291]
[1645173244566,0.19990145,40740.0,40739.0,0.061354]
[1645173244767,0.19990145,40744.0,40739.0,0.742063]
[1645173245067,0.00029932,40743.0,40740.0,0.28069388]
[1645173245301,0.25020077,40744.0,40741.0,0.430709]
[1645173245503,0.00029932,40743.0,40741.0,0.430709]
[1645173245701,0.25020077,40744.0,40741.0,0.430709]
[1645173245902,0.00029932,40743.0,40741.0,0.530709]
[1645173246101,0.19990145,40744.0,40741.0,0.530709]
[1645173246102,0.20020077,40744.0,40741.0,0.530709]
[1645173246302,0.00029932,40743.0,40741.0,0.530709]
[1645173246503,0.20020077,40744.0,40741.0,0.530709]
[1645173246711,0.00029932,40743.0,40741.0,0.530709]
[1645173246909,0.20020077,40744.0,40741.0,0.530709]
[1645173247103,0.00029932,40743.0,40742.0,1.06560648]
[1645173247303,0.19990145,40744.0,40742.0,1.06560648]
[1645173247304,0.20020077,40744.0,40743.0,0.331509]
[1645173247502,0.19990145,40744.0,40743.0,0.380709]
[1645173247702,0.19990145,40744.0,40743.0,0.430709]
[1645173248105,0.19990145,40744.0,40743.0,0.451369]
[1645173249058,0.19990145,40744.0,40743.0,0.455369]
[1645173249462,0.19990145,40744.0,40743.0,0.555369]
[1645173249753,0.19990145,40744.0,40743.0,1.42490848]
[1645173250354,0.19990145,40744.0,40743.0,0.551369]
[1645173250554,0.19990145,40744.0,40743.0,0.851369]
[1645173250954,0.19990145,40744.0,40743.0,0.551369]
[1645173251154,0.1991021,40744.0,40743.0,0.551369]
[1645173251958,0.1991021,40744.0,40743.0,0.5526489]
[1645173253905,0.1991021,40744.0,40743.0,0.55274573]
[1645173254110,0.1991021,40744.0,40743.0,0.85274573]
[1645173254308,0.1991021,40747.0,40743.0,0.85274573]
[1645173254510,0.1991021,40747.0,40744.0,0.122696]
[1645173254706,0.1991021,40747.0,40745.0,0.380709]
[1645173255005,0.1991021,40747.0,40745.0,0.530709]
[1645173255208,0.19940142,40747.0,40746.0,0.32066]
[1645173255410,0.19940142,40747.0,40746.0,2.151369]
[1645173255411,0.1991021,40747.0,40746.0,2.151369]
[1645173255606,0.0011,40757.0,40748.0,1.3]
[1645173255607,0.19940142,40752.0,40748.0,1.3]
[1645173255807,0.1991021,40755.0,40749.0,1.730709]
[1645173256006,0.1991021,40755.0,40751.0,0.331509]
[1645173256205,0.1991021,40755.0,40753.0,0.28091858]
[1645173256206,0.19940142,40755.0,40753.0,0.28091858]
[1645173256407,0.1991021,40755.0,40754.0,0.0492]
[1645173256654,0.1991021,40755.0,40754.0,0.380709]
[1645173256855,0.1991021,40755.0,40754.0,0.480709]
[1645173258354,0.1991021,40755.0,40754.0,0.501369]
[1645173260813,0.00029932,40756.0,40754.0,0.62404077]
[1645173261018,0.0011,40757.0,40755.0,0.061336]
[1645173261214,0.0011,40757.0,40756.0,0.380709]
[1645173261414,0.00139932,40757.0,40756.0,0.401369]
[1645173261614,0.0011,40757.0,40756.0,0.451369]
[1645173263416,0.0011,40757.0,40756.0,0.551369]
[1645173264658,0.0011,40757.0,40756.0,2.765969]
[1645173264856,0.0011,40757.0,40756.0,2.475369]
[1645173265060,0.0011,40757.0,40756.0,2.480369]
[1645173265356,0.0001,40757.0,40756.0,2.480369]
[1645173266356,0.0001,40757.0,40756.0,2.475369]
[1645173266557,0.0001,40757.0,40756.0,2.67067803]
[1645173266957,0.0001,40757.0,40756.0,2.67176809]
[1645173267157,0.0001,40757.0,40756.0,1.37176809]
[1645173267358,0.0001,40757.0,40756.0,2.67176809]
[1645173268406,0.0001,40757.0,40756.0,2.47645906]
[1645173269005,0.0001,40757.0,40756.0,2.47655364]
[1645173269506,0.00029932,40758.0,40756.0,2.67185835]
[1645173269706,0.0011,40759.0,40758.0,1.631509]
[1645173269906,0.0011,40759.0,40758.0,1.780709]
[1645173270113,0.0011,40759.0,40758.0,1.801369]
[1645173271863,0.00029932,40762.0,40758.0,1.801369]
[1645173272065,0.0022,40763.0,40762.0,1.3]
[1645173272263,0.0022,40763.0,40762.0,1.680709]
[1645173272463,0.0022,40763.0,40762.0,2.395309]
[1645173273364,0.0022,40763.0,40762.0,2.415969]
[1645173274965,0.00077742,40763.0,40762.0,2.415969]
[1645173277105,0.00077742,40763.0,40762.0,2.41705376]
[1645173277811,0.00077742,40763.0,40762.0,1.11705376]
[1645173278405,0.00077742,40763.0,40762.0,1.1171479]
[1645173279354,0.00077742,40763.0,40762.0,1.4171479]
[1645173281160,0.00077742,40763.0,40762.0,1.1171479]
[1645173281757,0.00077742,40763.0,40762.0,1.4171479]
[1645173281957,0.00077742,40763.0,40762.0,1.41818743]
[1645173282358,0.00077742,40763.0,40762.0,1.11818743]
[1645173283104,0.00077742,40763.0,40762.0,1.41818743]
[1645173286563,0.00077742,40763.0,40762.0,1.11818743]
[1645173288558,0.0011,40767.0,40762.0,1.41818743]
[1645173288559,0.062426,40767.0,40762.0,1.41818743]
[1645173288857,0.05984141,40767.0,40763.0,0.44283481]
[1645173289058,0.05984141,40767.0,40764.0,0.0492]
[1645173289258,0.05984141,40767.0,40765.0,0.381509]
[1645173289458,0.10661562,40764.0,40763.0,0.54284781]
[1645173291307,0.10661562,40764.0,40763.0,0.54584781]
[1645173292510,0.10661562,40764.0,40763.0,0.54284781]
[1645173293313,0.10661562,40764.0,40763.0,0.54594188]
[1645173294555,0.10661562,40764.0,40763.0,0.54294188]
[1645173294953,0.10161562,40764.0,40763.0,0.54294188]
[1645173295253,0.10161562,40764.0,40763.0,0.54594188]
[1645173296355,0.10161562,40764.0,40763.0,0.59514188]
[1645173296556,0.10161562,40764.0,40763.0,0.59214188]
[1645173296955,0.10161562,40764.0,40763.0,0.59511812]
[1645173301212,0.10161562,40764.0,40763.0,0.59811812]
[1645173301657,0.10161562,40764.0,40763.0,0.59713826]
[1645173305160,0.10161562,40764.0,40763.0,0.59413826]
[1645173307015,0.10161562,40764.0,40763.0,0.59312912]
[1645173308718,0.15161562,40764.0,40763.0,0.59312912]
[1645173309759,0.10161562,40764.0,40763.0,0.59312912]
[1645173311266,0.10161562,40764.0,40763.0,0.59612912]
[1645173311461,0.10161562,40764.0,40763.0,0.5972491]
[1645173312463,0.10161562,40764.0,40763.0,0.5942491]
[1645173313307,0.10161562,40764.0,40763.0,0.5972491]
[1645173313506,0.10161562,40764.0,40763.0,0.7925505]
[1645173314308,0.10161562,40764.0,40763.0,0.5972491]
[1645173314508,0.10161562,40764.0,40763.0,0.5942491]
[1645173315309,0.10161562,40764.0,40763.0,0.5972491]
[1645173316567,0.10161562,40764.0,40763.0,0.5942491]
[1645173316762,0.10161562,40764.0,40763.0,0.5450491]
[1645173317160,0.10161562,40764.0,40763.0,0.5480491]
[1645173317759,0.10161562,40764.0,40763.0,0.5972491]
[1645173318562,0.10161562,40764.0,40763.0,0.5942491]
[1645173319563,0.10149729,40764.0,40763.0,0.5942491]
[1645173321215,0.10149729,40764.0,40763.0,0.5972491]
[1645173322217,0.10149729,40764.0,40763.0,0.7925505]
[1645173322416,0.10149729,40764.0,40763.0,0.5942491]
[1645173324988,0.10149729,40764.0,40763.0,0.7895505]
[1645173325188,0.10149729,40764.0,40763.0,0.7925505]
[1645173325588,0.00029782,40766.0,40763.0,1.18253006]
[1645173325788,0.00029782,40767.0,40764.0,0.331522]
[1645173325987,0.00023867,40767.0,40765.0,0.171825]
[1645173326187,0.00053649,40767.0,40766.0,0.331522]
[1645173326391,0.00023867,40767.0,40766.0,0.480722]
[1645173326591,0.00023867,40767.0,40766.0,2.78515356]
[1645173326791,0.00139782,40768.0,40767.0,0.00053733]
[1645173326995,0.0011,40768.0,40767.0,1.02438089]
[1645173327190,0.00010235,40769.0,40768.0,0.95]
[1645173327393,0.00010235,40769.0,40768.0,2.33757289]
[1645173327592,0.00010235,40769.0,40768.0,2.63287429]
[1645173327808,0.00040932,40775.0,40771.0,0.19240283]
[1645173328109,0.1991021,40781.0,40774.0,0.331522]
[1645173328313,0.303706,40780.0,40776.0,0.331522]
[1645173328509,0.111306,40780.0,40778.0,0.331522]
[1645173328708,0.111306,40780.0,40779.0,0.0492]
[1645173328908,0.111306,40780.0,40779.0,0.331522]
[1645173329308,0.111306,40780.0,40779.0,0.383722]
[1645173330509,0.111306,40780.0,40779.0,0.380722]
[1645173331765,0.111306,40780.0,40779.0,0.38178486]
[1645173332461,0.111306,40780.0,40779.0,0.05026286]
[1645173333263,0.111306,40780.0,40779.0,0.05035578]
[1645173334666,0.111306,40780.0,40779.0,0.00115578]
[1645173335309,0.111306,40780.0,40779.0,0.00515578]
[1645173336711,0.111306,40780.0,40779.0,0.00409292]
[1645173337112,0.111306,40780.0,40779.0,9.292e-05]
[1645173337318,0.111306,40780.0,40779.0,0.00409292]
[1645173338613,0.111306,40780.0,40779.0,9.292e-05]
[1645173339064,0.061306,40780.0,40779.0,9.292e-05]
[1645173339865,0.061306,40780.0,40779.0,0.25237112]
[1645173340160,0.061306,40780.0,40779.0,9.292e-05]
[1645173343410,0.061306,40780.0,40775.0,0.12271356]
[1645173343612,0.06160233,40780.0,40776.0,0.331438]
[1645173343812,0.1991021,40777.0,40776.0,0.331438]
[1645173344014,0.1991021,40777.0,40776.0,0.60103633]
[1645173345414,0.1991021,40777.0,40776.0,0.331438]
[1645173346660,0.1991021,40777.0,40775.0,9.292e-05]
[1645173346661,0.2491021,40777.0,40775.0,9.292e-05]
[1645173347061,0.24939843,40777.0,40775.0,9.292e-05]
[1645173347262,0.75073914,40776.0,40775.0,9.292e-05]
[1645173347665,0.101329,40774.0,40767.0,0.00053733]
[1645173347860,0.101329,40772.0,40767.0,0.00053733]
[1645173348061,0.1,40773.0,40767.0,0.00053733]
[1645173348062,0.1991021,40771.0,40767.0,0.00053733]
[1645173348260,0.2491021,40771.0,40767.0,0.00053733]
[1645173348462,0.1991021,40768.0,40767.0,0.00053733]
[1645173348667,0.80924286,40768.0,40767.0,0.00053733]
[1645173348865,0.47780486,40768.0,40767.0,0.00053733]
[1645173349164,0.80924286,40768.0,40767.0,0.00053733]
[1645173349578,0.42890486,40768.0,40767.0,0.04723733]
[1645173349768,0.2002021,40768.0,40767.0,0.04723733]
[1645173351222,0.2002021,40768.0,40767.0,0.0467]
[1645173351423,0.2002021,40768.0,40767.0,0.0497]
[1645173352623,0.2002021,40768.0,40767.0,0.0467]
[1645173353423,0.2002021,40768.0,40767.0,0.0497]
[1645173353624,0.2002021,40768.0,40767.0,0.04981738]
[1645173354661,0.2002021,40768.0,40767.0,0.04681738]
[1645173354862,0.2002021,40768.0,40767.0,0.67825538]
[1645173355060,0.2002021,40768.0,40767.0,0.47825538]
[1645173355260,0.2002021,40768.0,40767.0,0.58045538]
[1645173355662,0.2002021,40768.0,40767.0,0.88045538]
[1645173355862,0.2002021,40768.0,40767.0,0.58045538]
[1645173356160,0.2002021,40768.0,40767.0,0.88045538]
[1645173356559,0.2002021,40768.0,40767.0,0.87745538]
[1645173356759,0.2002021,40768.0,40767.0,0.8807071]
[1645173357159,0.0011,40768.0,40767.0,0.8807071]
[1645173357358,0.0011,40768.0,40767.0,0.8847071]
[1645173357808,0.1991021,40768.0,40767.0,1.07997425]
[1645173358411,0.1991021,40768.0,40767.0,0.8847071]
[1645173359110,0.1991021,40768.0,40767.0,0.8807071]
[1645173360310,0.1991021,40768.0,40767.0,0.2492691]
[1645173360516,0.1991021,40768.0,40767.0,0.775974]
[1645173360710,0.1991021,40768.0,40767.0,0.4807071]
[1645173360910,0.1991021,40768.0,40767.0,0.5807071]
[1645173361113,0.1991021,40768.0,40767.0,0.8807071]
[1645173361572,0.1991021,40768.0,40767.0,0.5807071]
[1645173363472,0.1991021,40768.0,40767.0,0.4347071]
[1645173363671,0.1991021,40768.0,40767.0,0.5847071]
[1645173363873,0.1991021,40768.0,40767.0,0.8847071]
[1645173364672,0.1991021,40768.0,40767.0,0.8807071]
[1645173365318,0.1991021,40768.0,40767.0,0.8847071]
[1645173366523,0.1991021,40768.0,40767.0,0.6807071]
[1645173367120,0.1991021,40768.0,40767.0,0.3807071]
[1645173367322,0.1991021,40768.0,40767.0,0.2847071]
[1645173368521,0.1991021,40768.0,40767.0,0.28482448]
[1645173368822,0.1991021,40768.0,40767.0,0.33082448]
[1645173369260,0.1991021,40768.0,40767.0,0.43082448]
[1645173369460,0.1991021,40768.0,40767.0,0.48402448]
[1645173369860,0.1991021,40768.0,40767.0,0.43482448]
[1645173370561,0.1991021,40768.0,40767.0,0.43082448]
[1645173371362,0.1991021,40768.0,40767.0,0.43482448]
[1645173371561,0.1991021,40768.0,40767.0,0.28482448]
[1645173371761,0.19658508,40768.0,40767.0,0.28482448]
[1645173372360,0.19658508,40768.0,40767.0,0.33402448]
[1645173372561,0.19379511,40768.0,40767.0,0.33002448]
[1645173372814,0.19379511,40768.0,40767.0,0.38002448]
[1645173373013,0.19379511,40768.0,40767.0,0.68002448]
[1645173373214,0.19379511,40768.0,40767.0,0.38002448]
[1645173373415,0.19379511,40768.0,40767.0,0.38402448]
[1645173374719,0.19379511,40768.0,40767.0,0.33002448]
[1645173376667,0.18879511,40768.0,40767.0,0.33002448]
[1645173377468,0.18879511,40768.0,40767.0,0.33402448]
[1645173378570,0.18879511,40768.0,40767.0,0.33002448]
[1645173379770,0.18879511,40768.0,40767.0,0.38002448]
[1645173381418,0.18879511,40768.0,40767.0,0.38402448]
[1645173382618,0.18879511,40768.0,40767.0,0.38002448]
[1645173383418,0.18879511,40768.0,40767.0,0.38302448]
[1645173384072,0.18879511,40768.0,40767.0,0.68302448]
[1645173384664,0.18879511,40768.0,40767.0,0.68002448]
[1645173385462,0.18879511,40768.0,40767.0,0.68402448]
[1645173385965,0.18879511,40768.0,40767.0,0.78402448]
[1645173386768,0.18865568,40768.0,40767.0,0.78002448]
[1645173386967,0.18865568,40768.0,40767.0,0.7828823]
[1645173387367,0.18865568,40768.0,40767.0,0.7868823]
[1645173387568,0.18865568,40768.0,40767.0,0.3868823]
[1645173387813,0.18865568,40768.0,40767.0,0.3368823]
[1645173388613,0.18865568,40768.0,40767.0,0.3328823]
[1645173389914,0.18865568,40768.0,40767.0,0.4328823]
[1645173390715,0.18865568,40768.0,40767.0,0.4828823]
[1645173391416,0.18865568,40768.0,40767.0,0.4858823]
[1645173391664,0.18865568,40768.0,40767.0,0.7858823]
[1645173392062,0.18865568,40768.0,40767.0,0.4858823]
[1645173393865,0.18865568,40768.0,40767.0,2.1358823]
[1645173394065,0.0011,40770.0,40769.0,1.3]
[1645173394266,0.0011,40770.0,40769.0,2.295238]
[1645173394467,0.0011,40770.0,40769.0,2.59051331]
[1645173395065,0.00026904,40771.0,40769.0,2.59051331]
[1645173395314,0.00029633,40778.0,40770.0,1.007403]
[1645173395515,0.00029633,40779.0,40772.0,0.6146]
[1645173395715,0.00137233,40778.0,40774.0,0.111307]
[1645173395918,0.00137233,40778.0,40775.0,0.380697]
[1645173395919,0.001076,40778.0,40775.0,0.380697]
[1645173396416,0.001076,40778.0,40775.0,0.73938435]
[1645173396615,0.00029633,40779.0,40776.0,0.061306]
[1645173396816,0.00026902,40779.0,40777.0,0.0492]
[1645173397120,0.00056535,40779.0,40777.0,0.0492]
[1645173397315,0.00026902,40779.0,40777.0,0.0492]
[1645173397516,0.00056535,40779.0,40777.0,0.0522]
[1645173397717,0.00026902,40779.0,40778.0,0.331497]
[1645173397919,0.55479264,40777.0,40776.0,0.111306]
[1645173398117,0.55479264,40777.0,40776.0,0.63807831]
[1645173398518,0.55479264,40777.0,40776.0,0.442803]
[1645173398918,0.55479264,40777.0,40776.0,0.72254978]
[1645173399367,0.55479264,40777.0,40776.0,0.77174978]
[1645173399569,0.55479264,40777.0,40776.0,0.77474978]
[1645173399968,0.55479264,40777.0,40776.0,0.71302519]
[1645173400871,0.55479264,40777.0,40776.0,0.71002519]
[1645173401469,0.55479264,40777.0,40776.0,0.71302519]
[1645173401872,0.55479264,40777.0,40776.0,0.383697]
[1645173402672,0.55479264,40777.0,40776.0,0.380697]
[1645173403118,0.55479264,40777.0,40776.0,0.70059851]
[1645173403519,0.55479264,40777.0,40776.0,0.70472226]
[1645173403718,0.55479264,40777.0,40776.0,0.38482075]
[1645173404320,0.5464304,40777.0,40776.0,0.38482075]